{"text_format":"2","workbook":"xlsx","n_sheets":1,"sheets":["Plan_Orcament_Licit_TO_2024"],"not_rendered":{"charts":0,"images":1,"macros":0,"external_links":0,"defined_names":1,"comments":0,"pivot_tables":0},"unopened":[],"bounds":{"document_bytes":16777216,"sheet_cells":100000,"run_cost":"one","rows_first":2000,"rows_last":500,"rows_between":2000,"halvings":0,"cell_chars":16384,"cell_head_chars":4096},"cells_cut":0,"cells_raw":0,"read":"whole","date_system":"1900"}

{"sheet":"Plan_Orcament_Licit_TO_2024","index":0,"n_rows":171,"n_cols":8,"rows_kept":171,"cut":false,"hidden":false,"merged":[[9,0,9,7],[7,0,7,7],[5,0,5,7],[11,0,11,7],[154,1,154,7],[102,1,102,7],[118,1,118,7],[126,1,126,7],[140,1,140,7],[162,1,162,7],[12,0,12,5],[10,1,10,5],[61,1,61,7],[170,0,170,6],[110,1,110,7],[14,1,14,7],[22,1,22,7],[30,1,30,7],[42,1,42,7],[54,1,54,7],[68,1,68,7],[73,1,73,7],[78,1,78,7],[86,1,86,7],[94,1,94,7]]}
[null,null,"                                 MINISTÉRIO DA INTEGRAÇÃO E DO DESENVOLVIMENTO REGIONAL (MIDR)"]
[null,null,"                                 COMPANHIA DO DESENVOLVIMENTO DOS VALES DO SÃO FRANCISCO E DO PARNAÍBA"]
[null,null,"                                 ÁREA DE GESTÃO DOS EMPREENDIMENTOS DE IRRIGAÇÃO (AI)"]
[]
[]
["ANEXO-I"]
[]
["PLANILHA DE QUANTIDADES PARA: SEDE (DF), 1ª/SR, 2ª/SR, 8ª/SR, 9ª/SR, 10ª/SR, 11ª/SR, 12ª/SR E 16ª/SR"]
[]
["SISTEMAS DE IRRIGAÇÃO: ASPERSÃO CONVENCIONAL-1 ha, MICROASPERSÃO-1 ha e MICROASPERSÃO-0,5 ha, GOTEJAMENTO--1 ha,\nGOTEJAMENTO-0,5 ha E MINI KIT DE IRRIGAÇÃO (600 m²)"]
[]
["MATERIAIS e SERVIÇOS"]
[]
[]
["GRUPO 1","SISTEMAS DE IRRIGAÇÃO PARA IMPLANTAÇÃO NA ÁREA DE ATUAÇÃO DA SEDE – DISTRITO FEDERAL (AMPLA CONCORRÊNCIA)"]
["ITEM","CATMAT","DESCRIÇÃO/ESPECIFICAÇÃO","COTA/DECRETO","UNIDADE DE\nMEDIDA","QUANTIDADE MÁXIMA\nANUAL","PREÇO UNITÁRIO\n(R$)","PREÇO TOTAL\n(R$)"]
[1,470243,"Sistema de irrigação por aspersão, malha fixa, com abrigo para o conjunto motobomba e capacidade para irrigar área de 1,0 hectare, para tensão nominal de 220V. ","Ampla concorrência","Unidade",95,13868.444051999997,{"$f":"F17*G17","v":1317502.1849399998}]
[{"$f":"A17+1","v":2},470243,"Sistema de Irrigação localizada, por microaspersão, com sistema de filtragem e fertirrigação, com capacidade para irrigar área de 1,0 hectare, para tensão nominal de 220V.  ","Ampla concorrência","Unidade",95,30967.598600000005,{"$f":"F18*G18","v":2941921.8670000006}]
[{"$f":"A18+1","v":3},470243,"Sistema de irrigação localizada, por microaspersão, fixo, com sistema de filtragem, abrigo para o conjunbto motobomba e capacidade para irrigar área de 0,50 hectare, para tensão nominal de 220V. ","Ampla concorrência","Unidade",47,18271.623799999998,858766.31859999988]
[4,470243,"Sistema de Irrigação localizada, por gotejamento, com sistema de filtragem e fertirrigação, com capacidade para irrigar área de 1,0 hectare, para tensão nominal de 220V. ","Ampla concorrência","Unidade",95,31617.485999999997,3003661.17]
[5,470243,"Sistema de Irrigação localizada, por gotejamento, com sistema de filtragem e fertirrigação, com capacidade para irrigar área de 0,5 hectare, para tensão nominal de 220V. ","Ampla concorrência","Unidade",47,18152.1862,853152.75139999995]
[6,470243,"Minikit de irrigação com capacidade para 600 m2 de horta, 1.260 m2 de culturas temporárias ou 5.400 m2 de fruticultura, para tensão nominal de 220V.  ","Ampla concorrência","Unidade",95,4370.7049999999999,415216.97499999998]
["GRUPO 2","SISTEMAS DE IRRIGAÇÃO PARA IMPLANTAÇÃO NA ÁREA DE ATUAÇÃO DA SEDE – DISTRITO FEDERAL (COTA DE ATÉ 25% - RESERVADA PARA ME/EPP)"]
["ITEM","CATMAT","DESCRIÇÃO/ESPECIFICAÇÃO","COTA/DECRETO","UNIDA DE\nMEDIDA","QUANTIDADE MÁXIMA\nANUAL","PREÇO UNITÁRIO\n(R$)","PREÇO TOTAL\n(R$)"]
[7,470243,"Sistema de irrigação por aspersão, malha fixa, com abrigo para o conjunto motobomba e capacidade para irrigar área de 1,0 hectare, para tensão nominal de 220V. ","Cota de até 25% reservada\npara ME/EPP","Unidade",5,13868.444051999997,{"$f":"F25*G25","v":69342.220259999987}]
[{"$f":"A25+1","v":8},470243,"Sistema de Irrigação localizada, por microaspersão, com sistema de filtragem e fertirrigação, com capacidade para irrigar área de 1,0 hectare, para tensão nominal de 220V. ","Cota de até 25% reservada\npara ME/EPP","Unidade",5,30967.598600000005,154837.99300000002]
[9,470243,"Sistema de irrigação localizada, por microaspersão, fixo, com sistema de filtragem, abrigo para o conjunbto motobomba e capacidade para irrigar área de 0,50 hectare, para tensão nominal de 220V. ","Cota de até 25% reservada\npara ME/EPP","Unidade",3,18271.623799999998,54814.871399999989]
[10,470243,"Sistema de Irrigação localizada, por gotejamento, com sistema de filtragem e fertirrigação, com capacidade para irrigar área de 1,0 hectare, para tensão nominal de 220V. ","Cota de até 25% reservada\npara ME/EPP","Unidade",5,31617.485999999997,158087.43]
[11,470243,"Sistema de Irrigação localizada, por gotejamento, com sistema de filtragem e fertirrigação, com capacidade para irrigar área de 0,5 hectare, para tensão nominal de 220V. ","Cota de até 25% reservada\npara ME/EPP","Unidade",3,18152.1862,54456.558600000004]
[12,470243,"Minikit de irrigação com capacidade para 600 m2 de horta, 1.260 m2 de culturas temporárias ou 5.400 m2 de fruticultura, para tensão nominal de 220V.  ","Cota de até 25% reservada\npara ME/EPP","Unidade",5,4370.7049999999999,21853.525000000001]
["GRUPO 3","SISTEMAS DE IRRIGAÇÃO PARA IMPLANTAÇÃO NA ÁREA DE ATUAÇÃO DA 2ª SR – BAHIA (AMPLA CONCORRÊNCIA)"]
["ITEM","CATMAT","DESCRIÇÃO/ESPECIFICAÇÃO","COTA/DECRETO","UNIDA DE\nMEDIDA","QUANTIDADE MÁXIMA\nANUAL","PREÇO UNITÁRIO\n(R$)","PREÇO TOTAL\n(R$)"]
[13,470243,"Sistema de irrigação por aspersão, malha fixa, com abrigo para o conjunto motobomba e capacidade para irrigar área de 1,0 hectare, para a tensão nominal de 127V. ","Ampla concorrência","Unidade",23,13738.444051999997,{"$f":"F33*G33","v":315984.21319599991}]
[14,470243,"Sistema de Irrigação localizada, por microaspersão, com sistema de filtragem e fertirrigação, com capacidade para irrigar área de 1,0 hectare, para a tensão nominal de 127V.","Ampla concorrência","Unidade",285,27018.227899999998,7700194.9514999995]
[15,470243,"Sistema de Irrigação localizada, por microaspersão, com sistema de filtragem e fertirrigação, com capacidade para irrigar área de 0,5 hectare, para a tensão nominal de 127V.","Ampla concorrência","Unidade",47,18316.537899999999,860877.28129999992]
[16,470243,"Sistema de Irrigação localizada, por gotejamento, com sistema de filtragem e fertirrigação, com capacidade para irrigar área de 1,0 hectare, para a tensão nominal de 127V.","Ampla concorrência","Unidade",95,27646.275299999994,2626396.1534999995]
[17,470243,"Sistema de Irrigação localizada, por gotejamento, com sistema de filtragem e fertirrigação, com capacidade para irrigar área de 0,5 hectare, para a tensão nominal de 127V.","Ampla concorrência","Unidade",47,18229.7107,856796.40289999999]
[18,470243,"Sistema de irrigação por aspersão, malha fixa, com abrigo para o conjunto motobomba e capacidade para irrigar área de 1,0 hectare, para tensão nominal de 220V.  ","Ampla concorrência","Unidade",23,13738.444051999997,315984.21319599991]
[19,470243,"Sistema de Irrigação localizada, por microaspersão, com sistema de filtragem e fertirrigação, com capacidade para irrigar área de 1,0 hectare, para tensão nominal de 220V.  ","Ampla concorrência","Unidade",285,30681.287900000003,8744167.0515000001]
[20,470243,"Sistema de Irrigação localizada, por microaspersão, com sistema de filtragem e fertirrigação, com capacidade para irrigar área de 0,5 hectare, para tensão nominal de 220V.  ","Ampla concorrência","Unidade",47,18243.318299999999,857435.96009999991]
[21,470243,"Sistema de Irrigação localizada, por gotejamento, com sistema de filtragem e fertirrigação, com capacidade para irrigar área de 1,0 hectare, para tensão nominal de 220V.  ","Ampla concorrência","Unidade",95,31309.815299999998,2974432.4534999998]
[22,470243,"Sistema de Irrigação localizada, por gotejamento, com sistema de filtragem e fertirrigação, com capacidade para irrigar área de 0,5 hectare, para tensão nominal de 220V.  ","Ampla concorrência","Unidade",47,18155.250699999997,853296.78289999987]
["GRUPO 4","SISTEMAS DE IRRIGAÇÃO PARA IMPLANTAÇÃO NA ÁREA DE ATUAÇÃO DA 2ª SR – BAHIA (COTA DE ATÉ 25% - RESERVADA PARA ME/EPP)"]
["ITEM","CATMAT","DESCRIÇÃO/ESPECIFICAÇÃO","COTA/DECRETO","UNIDA DE\nMEDIDA","QUANTIDADE MÁXIMA\nANUAL","PREÇO UNITÁRIO\n(R$)","PREÇO TOTAL\n(R$)"]
[23,470243,"Sistema de irrigação por aspersão, malha fixa, com abrigo para o conjunto motobomba e capacidade para irrigar área de 1,0 hectare, para a tensão nominal de 127V. ","Cota de até 25% reservada\npara ME/EPP","Unidade",2,13738.444051999997,{"$f":"F45*G45","v":27476.888103999994}]
[24,470243,"Sistema de Irrigação localizada, por microaspersão, com sistema de filtragem e fertirrigação, com capacidade para irrigar área de 1,0 hectare, para a tensão nominal de 127V.","Cota de até 25% reservada\npara ME/EPP","Unidade",15,27018.227899999998,405273.41849999997]
[{"$f":"A46+1","v":25},470243,"Sistema de Irrigação localizada, por microaspersão, com sistema de filtragem e fertirrigação, com capacidade para irrigar área de 0,5 hectare, para a tensão nominal de 127V.","Cota de até 25% reservada\npara ME/EPP","Unidade",3,18316.537899999999,54949.613700000002]
[26,470243,"Sistema de Irrigação localizada, por gotejamento, com sistema de filtragem e fertirrigação, com capacidade para irrigar área de 1,0 hectare, para a tensão nominal de 127V.","Cota de até 25% reservada\npara ME/EPP","Unidade",5,27646.275299999994,138231.37649999995]
[27,470243,"Sistema de Irrigação localizada, por gotejamento, com sistema de filtragem e fertirrigação, com capacidade para irrigar área de 0,5 hectare, para a tensão nominal de 127V.","Cota de até 25% reservada\npara ME/EPP","Unidade",3,18229.7107,54689.132100000003]
[28,470243,"Sistema de irrigação por aspersão, malha fixa, com abrigo para o conjunto motobomba e capacidade para irrigar área de 1,0 hectare, para tensão nominal de 220V.  ","Cota de até 25% reservada\npara ME/EPP","Unidade",2,13738.444051999997,27476.888103999994]
[29,470243,"Sistema de Irrigação localizada, por microaspersão, com sistema de filtragem e fertirrigação, com capacidade para irrigar área de 1,0 hectare, para tensão nominal de 220V.  ","Cota de até 25% reservada\npara ME/EPP","Unidade",15,30681.287900000003,460219.31850000005]
[30,470243,"Sistema de Irrigação localizada, por microaspersão, com sistema de filtragem e fertirrigação, com capacidade para irrigar área de 0,5 hectare, para tensão nominal de 220V.  ","Cota de até 25% reservada\npara ME/EPP","Unidade",3,18243.318299999999,54729.954899999997]
[31,470243,"Sistema de Irrigação localizada, por gotejamento, com sistema de filtragem e fertirrigação, com capacidade para irrigar área de 1,0 hectare, para tensão nominal de 220V.  ","Cota de até 25% reservada\npara ME/EPP","Unidade",5,31309.815299999998,156549.0765]
[32,470243,"Sistema de Irrigação localizada, por gotejamento, com sistema de filtragem e fertirrigação, com capacidade para irrigar área de 0,5 hectare, para tensão nominal de 220V.  ","Cota de até 25% reservada\npara ME/EPP","Unidade",3,18155.250699999997,54465.752099999991]
["GRUPO 5","SISTEMAS DE IRRIGAÇÃO PARA IMPLANTAÇÃO NA ÁREA DE ATUAÇÃO DA 1ª SR – MINAS GERAIS (AMPLA CONCORRÊNCIA)"]
["ITEM","CATMAT","DESCRIÇÃO/ESPECIFICAÇÃO","COTA/DECRETO","UNIDA DE\nMEDIDA","QUANTIDADE MÁXIMA\nANUAL","PREÇO UNITÁRIO\n(R$)","PREÇO TOTAL\n(R$)"]
[33,470243,"Sistema de irrigação por aspersão, malha fixa, com abrigo para o conjunto motobomba e capacidade para irrigar área de 1,0 hectare, para a tensão nominal de 127V. ","Ampla concorrência","Unidade",47,13362.564051999996,{"$f":"F57*G57","v":628040.51044399978}]
[34,470243,"Sistema de Irrigação localizada, por microaspersão, com sistema de filtragem e fertirrigação, com capacidade para irrigar área de 1,0 hectare, para a tensão nominal de 127V.","Ampla concorrência","Unidade",28,27008.756100000002,756245.17080000008]
[35,470243,"Sistema de Irrigação localizada, por microaspersão, com sistema de filtragem e fertirrigação, com capacidade para irrigar área de 0,5 hectare, para a tensão nominal de 127V.","Ampla concorrência","Unidade",9,18138.036699999997,163242.33029999997]
[36,470243,"Sistema de Irrigação localizada, por gotejamento, com sistema de filtragem e fertirrigação, com capacidade para irrigar área de 1,0 hectare, para a tensão nominal de 127V.","Ampla concorrência","Unidade",4,27657.373499999994,110629.49399999998]
[{"$f":"A60+1","v":37},470243,"Minikit de irrigação com capacidade para 600 m2 de horta, 1.260 m2 de culturas temporárias ou 5.400 m2 de fruticultura, para tensão nominal de 127V.","Ampla concorrência","Unidade",47,4348.1849999999986,204364.69499999992]
["GRUPO 6","SISTEMAS DE IRRIGAÇÃO PARA IMPLANTAÇÃO NA ÁREA DE ATUAÇÃO DA 1ª SR – MINAS GERAIS (COTA DE ATÉ 25% - RESERVADA PARA ME/EPP)"]
["ITEM","CATMAT","DESCRIÇÃO/ESPECIFICAÇÃO","COTA/DECRETO","UNIDA DE\nMEDIDA","QUANTIDADE MÁXIMA\nANUAL","PREÇO UNITÁRIO\n(R$)","PREÇO TOTAL\n(R$)"]
[{"$f":"A61+1","v":38},470243,"Sistema de irrigação por aspersão, malha fixa, com abrigo para o conjunto motobomba e capacidade para irrigar área de 1,0 hectare, para a tensão nominal de 127V. ","Cota de até 25% reservada\npara ME/EPP","Unidade",3,13362.564051999996,{"$f":"F64*G64","v":40087.69215599999}]
[39,470243,"Sistema de Irrigação localizada, por microaspersão, com sistema de filtragem e fertirrigação, com capacidade para irrigar área de 1,0 hectare, para a tensão nominal de 127V.","Cota de até 25% reservada\npara ME/EPP","Unidade",2,27008.756100000002,54017.512200000005]
[40,470243,"Sistema de Irrigação localizada, por microaspersão, com sistema de filtragem e fertirrigação, com capacidade para irrigar área de 0,5 hectare, para a tensão nominal de 127V.","Cota de até 25% reservada\npara ME/EPP","Unidade",1,18138.036699999997,18138.036699999997]
[41,470243,"Sistema de Irrigação localizada, por gotejamento, com sistema de filtragem e fertirrigação, com capacidade para irrigar área de 1,0 hectare, para a tensão nominal de 127V.","Cota de até 25% reservada\npara ME/EPP","Unidade",1,27657.373499999994,27657.373499999994]
[42,470243,"Minikit de irrigação com capacidade para 600 m2 de horta, 1.260 m2 de culturas temporárias ou 5.400 m2 de fruticultura, para tensão nominal de 127V.","Cota de até 25% reservada\npara ME/EPP","Unidade",3,4348.1849999999986,13044.554999999997]
["GRUPO 7","SISTEMAS DE IRRIGAÇÃO PARA IMPLANTAÇÃO NA ÁREA DE ATUAÇÃO DA 16ª SR – MINAS GERAIS (AMPLA CONCORRÊNCIA)"]
["ITEM","CATMAT","DESCRIÇÃO/ESPECIFICAÇÃO","COTA/DECRETO","UNIDA DE\nMEDIDA","QUANTIDADE MÁXIMA\nANUAL","PREÇO UNITÁRIO\n(R$)","PREÇO TOTAL\n(R$)"]
[{"$f":"A68+1","v":43},470243,"Sistema de irrigação por aspersão, malha fixa, com abrigo para o conjunto motobomba e capacidade para irrigar área de 1,0 hectare, para a tensão nominal de 127V. ","Ampla concorrência","Unidade",28,13362.564051999996,{"$f":"F71*G71","v":374151.79345599987}]
[44,470243,"Sistema de Irrigação localizada, por microaspersão, com sistema de filtragem e fertirrigação, com capacidade para irrigar área de 1,0 hectare, para a tensão nominal de 127V.","Ampla concorrência","Unidade",19,27008.756100000002,513166.36590000003]
[45,470243,"Sistema de Irrigação localizada, por gotejamento, com sistema de filtragem e fertirrigação, com capacidade para irrigar área de 0,5 hectare, para a tensão nominal de 127V.","Ampla concorrência","Unidade",142,18052.339499999995,2563432.2089999993]
["GRUPO 8","SISTEMAS DE IRRIGAÇÃO PARA IMPLANTAÇÃO NA ÁREA DE ATUAÇÃO DA 16ª SR – MINAS GERAIS (COTA DE ATÉ 25% - RESERVADA PARA ME/EPP)"]
["ITEM","CATMAT","DESCRIÇÃO/ESPECIFICAÇÃO","COTA/DECRETO","UNIDA DE\nMEDIDA","QUANTIDADE MÁXIMA\nANUAL","PREÇO UNITÁRIO\n(R$)","PREÇO TOTAL\n(R$)"]
[{"$f":"A73+1","v":46},470243,"Sistema de irrigação por aspersão, malha fixa, com abrigo para o conjunto motobomba e capacidade para irrigar área de 1,0 hectare, para a tensão nominal de 127V. ","Cota de até 25% reservada\npara ME/EPP","Unidade",2,13362.564051999996,{"$f":"F76*G76","v":26725.128103999992}]
[47,470243,"Sistema de Irrigação localizada, por microaspersão, com sistema de filtragem e fertirrigação, com capacidade para irrigar área de 1,0 hectare, para a tensão nominal de 127V.","Cota de até 25% reservada\npara ME/EPP","Unidade",1,27008.756100000002,27008.756100000002]
[{"$f":"A77+1","v":48},470243,"Sistema de Irrigação localizada, por gotejamento, com sistema de filtragem e fertirrigação, com capacidade para irrigar área de 0,5 hectare, para a tensão nominal de 127V.","Cota de até 25% reservada\npara ME/EPP","Unidade",8,18052.339499999995,144418.71599999996]
["GRUPO 9","SISTEMAS DE IRRIGAÇÃO PARA IMPLANTAÇÃO NA ÁREA DE ATUAÇÃO DA 8ª SR – MARANHÃO (AMPLA CONCORRÊNCIA)"]
["ITEM","CATMAT","DESCRIÇÃO/ESPECIFICAÇÃO","COTA/DECRETO","UNIDA DE\nMEDIDA","QUANTIDADE MÁXIMA\nANUAL","PREÇO UNITÁRIO\n(R$)","PREÇO TOTAL\n(R$)"]
[{"$f":"A78+1","v":49},470243,"Sistema de irrigação por aspersão, malha fixa, com abrigo para o conjunto motobomba e capacidade para irrigar área de 1,0 hectare, para tensão nominal de 220V. ","Ampla concorrência","Unidade",95,13822.644052,{"$f":"F81*G81","v":1313151.1849400001}]
[50,470243,"Sistema de Irrigação localizada, por microaspersão, com sistema de filtragem e fertirrigação, com capacidade para irrigar área de 1,0 hectare, para tensão nominal de 220V. ","Ampla concorrência","Unidade",47,30840.612900000011,1449508.8063000005]
[51,470243,"Sistema de irrigação localizada, por microaspersão, fixo, com sistema de filtragem, abrigo para o conjunbto motobomba e capacidade para irrigar área de 0,50 hectare, para tensão nominal de 220V. ","Ampla concorrência","Unidade",47,19311.891899999999,907658.91929999995]
[52,470243,"Sistema de Irrigação localizada, por gotejamento, com sistema de filtragem e fertirrigação, com capacidade para irrigar área de 1,0 hectare, para tensão nominal de 220V. ","Ampla concorrência","Unidade",47,31510.2703,1480982.7041]
[53,470243,"Sistema de Irrigação localizada, por gotejamento, com sistema de filtragem e fertirrigação, com capacidade para irrigar área de 0,5 hectare, para tensão nominal de 220V. ","Ampla concorrência","Unidade",47,19227.834299999999,903708.21209999989]
[54,470243,"Minikit de irrigação com capacidade para 600 m2 de horta, 1.260 m2 de culturas temporárias ou 5.400 m2 de fruticultura, para tensão nominal de 220V.  ","Ampla concorrência","Unidade",475,4354.6249999999991,2068446.8749999995]
["GRUPO 10","SISTEMAS DE IRRIGAÇÃO PARA IMPLANTAÇÃO NA ÁREA DE ATUAÇÃO DA 8ª SR – MARANHÃO (COTA DE ATÉ 25% - RESERVADA PARA ME/EPP)"]
["ITEM","CATMAT","DESCRIÇÃO/ESPECIFICAÇÃO","COTA/DECRETO","UNIDA DE\nMEDIDA","QUANTIDADE MÁXIMA\nANUAL","PREÇO UNITÁRIO\n(R$)","PREÇO TOTAL\n(R$)"]
[{"$f":"A86+1","v":55},470243,"Sistema de irrigação por aspersão, malha fixa, com abrigo para o conjunto motobomba e capacidade para irrigar área de 1,0 hectare, para tensão nominal de 220V. ","Cota de até 25% reservada\npara ME/EPP","Unidade",5,13822.644052,{"$f":"F89*G89","v":69113.220260000002}]
[56,470243,"Sistema de Irrigação localizada, por microaspersão, com sistema de filtragem e fertirrigação, com capacidade para irrigar área de 1,0 hectare, para tensão nominal de 220V. ","Cota de até 25% reservada\npara ME/EPP","Unidade",3,30840.612900000011,92521.838700000037]
[57,470243,"Sistema de irrigação localizada, por microaspersão, fixo, com sistema de filtragem, abrigo para o conjunbto motobomba e capacidade para irrigar área de 0,50 hectare, para tensão nominal de 220V. ","Cota de até 25% reservada\npara ME/EPP","Unidade",3,19311.891899999999,57935.675699999993]
[58,470243,"Sistema de Irrigação localizada, por gotejamento, com sistema de filtragem e fertirrigação, com capacidade para irrigar área de 1,0 hectare, para tensão nominal de 220V. ","Cota de até 25% reservada\npara ME/EPP","Unidade",3,31510.2703,94530.810899999997]
[59,470243,"Sistema de Irrigação localizada, por gotejamento, com sistema de filtragem e fertirrigação, com capacidade para irrigar área de 0,5 hectare, para tensão nominal de 220V. ","Cota de até 25% reservada\npara ME/EPP","Unidade",3,19227.834299999999,57683.502899999992]
[60,470243,"Minikit de irrigação com capacidade para 600 m2 de horta, 1.260 m2 de culturas temporárias ou 5.400 m2 de fruticultura, para tensão nominal de 220V.  ","Cota de até 25% reservada\npara ME/EPP","Unidade",25,4354.6249999999991,108865.62499999997]
["GRUPO 11","SISTEMAS DE IRRIGAÇÃO PARA IMPLANTAÇÃO NA ÁREA DE ATUAÇÃO DA 9ª SR – GOIÁS (AMPLA CONCORRÊNCIA)"]
["ITEM","CATMAT","DESCRIÇÃO/ESPECIFICAÇÃO","COTA/DECRETO","UNIDA DE\nMEDIDA","QUANTIDADE MÁXIMA\nANUAL","PREÇO UNITÁRIO\n(R$)","PREÇO TOTAL\n(R$)"]
[{"$f":"A94+1","v":61},470243,"Sistema de irrigação por aspersão, malha fixa, com abrigo para o conjunto motobomba e capacidade para irrigar área de 1,0 hectare, para tensão nominal de 220V. ","Ampla concorrência","Unidade",95,13522.624051999999,{"$f":"F97*G97","v":1284649.2849399999}]
[62,470243,"Sistema de Irrigação localizada, por microaspersão, com sistema de filtragem e fertirrigação, com capacidade para irrigar área de 1,0 hectare, para tensão nominal de 220V. ","Ampla concorrência","Unidade",95,30308.347300000001,2879292.9935000003]
[63,470243,"Sistema de irrigação localizada, por microaspersão, fixo, com sistema de filtragem, abrigo para o conjunbto motobomba e capacidade para irrigar área de 0,50 hectare, para tensão nominal de 220V. ","Ampla concorrência","Unidade",66,18022.502699999997,1189485.1781999997]
[64,470243,"Sistema de Irrigação localizada, por gotejamento, com sistema de filtragem e fertirrigação, com capacidade para irrigar área de 1,0 hectare, para tensão nominal de 220V. ","Ampla concorrência","Unidade",95,30946.024699999994,2939872.3464999995]
[65,470243,"Sistema de Irrigação localizada, por gotejamento, com sistema de filtragem e fertirrigação, com capacidade para irrigar área de 0,5 hectare, para tensão nominal de 220V. ","Ampla concorrência","Unidade",66,17935.425099999997,1183738.0565999998]
[66,470243,"Minikit de irrigação com capacidade para 600 m2 de horta, 1.260 m2 de culturas temporárias ou 5.400 m2 de fruticultura, para tensão nominal de 220V.  ","Ampla concorrência","Unidade",19,4320.2749999999987,82085.224999999977]
["GRUPO 12","SISTEMAS DE IRRIGAÇÃO PARA IMPLANTAÇÃO NA ÁREA DE ATUAÇÃO DA 9ª SR – GOIÁS (COTA DE ATÉ 25% - RESERVADA PARA ME/EPP)"]
["ITEM","CATMAT","DESCRIÇÃO/ESPECIFICAÇÃO","COTA/DECRETO","UNIDA DE\nMEDIDA","QUANTIDADE MÁXIMA\nANUAL","PREÇO UNITÁRIO\n(R$)","PREÇO TOTAL\n(R$)"]
[{"$f":"A102+1","v":67},470243,"Sistema de irrigação por aspersão, malha fixa, com abrigo para o conjunto motobomba e capacidade para irrigar área de 1,0 hectare, para tensão nominal de 220V. ","Cota de até 25% reservada\npara ME/EPP","Unidade",5,13522.624051999999,{"$f":"F105*G105","v":67613.120259999996}]
[68,470243,"Sistema de Irrigação localizada, por microaspersão, com sistema de filtragem e fertirrigação, com capacidade para irrigar área de 1,0 hectare, para tensão nominal de 220V. ","Cota de até 25% reservada\npara ME/EPP","Unidade",5,30308.347300000001,151541.7365]
[69,470243,"Sistema de irrigação localizada, por microaspersão, fixo, com sistema de filtragem, abrigo para o conjunbto motobomba e capacidade para irrigar área de 0,50 hectare, para tensão nominal de 220V. ","Cota de até 25% reservada\npara ME/EPP","Unidade",4,18022.502699999997,72090.010799999989]
[{"$f":"A107+1","v":70},470243,"Sistema de Irrigação localizada, por gotejamento, com sistema de filtragem e fertirrigação, com capacidade para irrigar área de 1,0 hectare, para tensão nominal de 220V. ","Cota de até 25% reservada\npara ME/EPP","Unidade",5,30946.024699999994,154730.12349999999]
[71,470243,"Sistema de Irrigação localizada, por gotejamento, com sistema de filtragem e fertirrigação, com capacidade para irrigar área de 0,5 hectare, para tensão nominal de 220V. ","Cota de até 25% reservada\npara ME/EPP","Unidade",4,17935.425099999997,71741.700399999987]
[72,470243,"Minikit de irrigação com capacidade para 600 m2 de horta, 1.260 m2 de culturas temporárias ou 5.400 m2 de fruticultura, para tensão nominal de 220V.  ","Cota de até 25% reservada\npara ME/EPP","Unidade",1,4320.2749999999987,4320.2749999999987]
["GRUPO 13","SISTEMAS DE IRRIGAÇÃO PARA IMPLANTAÇÃO NA ÁREA DE ATUAÇÃO DA 10ª SR – TOCANTINS (AMPLA CONCORRÊNCIA)"]
["ITEM","CATMAT","DESCRIÇÃO/ESPECIFICAÇÃO","COTA/DECRETO","UNIDA DE\nMEDIDA","QUANTIDADE MÁXIMA\nANUAL","PREÇO UNITÁRIO\n(R$)","PREÇO TOTAL\n(R$)"]
[{"$f":"A110+1","v":73},470243,"Sistema de irrigação por aspersão, malha fixa, com abrigo para o conjunto motobomba e capacidade para irrigar área de 1,0 hectare, para tensão nominal de 220V. ","Ampla concorrência","Unidade",19,13598.114051999999,{"$f":"F113*G113","v":258364.16698799998}]
[{"$f":"A113+1","v":74},470243,"Sistema de Irrigação localizada, por microaspersão, com sistema de filtragem e fertirrigação, com capacidade para irrigar área de 1,0 hectare, para tensão nominal de 220V. ","Ampla concorrência","Unidade",19,30435.636300000009,578277.08970000013]
[75,470243,"Sistema de irrigação localizada, por microaspersão, fixo, com sistema de filtragem, abrigo para o conjunbto motobomba e capacidade para irrigar área de 0,50 hectare, para tensão nominal de 220V. ","Ampla concorrência","Unidade",19,18140.976299999998,344678.54969999997]
[76,470243,"Sistema de Irrigação localizada, por gotejamento, com sistema de filtragem e fertirrigação, com capacidade para irrigar área de 1,0 hectare, para tensão nominal de 220V. ","Ampla concorrência","Unidade",19,31092.5537,590758.52029999997]
[77,470243,"Sistema de Irrigação localizada, por gotejamento, com sistema de filtragem e fertirrigação, com capacidade para irrigar área de 0,5 hectare, para tensão nominal de 220V. ","Ampla concorrência","Unidade",19,18054.7487,343040.22529999999]
[78,470243,"Minikit de irrigação com capacidade para 600 m2 de horta, 1.260 m2 de culturas temporárias ou 5.400 m2 de fruticultura, para tensão nominal de 220V.  ","Ampla concorrência","Unidade",19,4326.0149999999985,82194.284999999974]
["GRUPO 14","SISTEMAS DE IRRIGAÇÃO PARA IMPLANTAÇÃO NA ÁREA DE ATUAÇÃO DA 10ª SR – TOCANTINS (COTA DE ATÉ 25% - RESERVADA PARA ME/EPP)"]
["ITEM","CATMAT","DESCRIÇÃO/ESPECIFICAÇÃO","COTA/DECRETO","UNIDA DE\nMEDIDA","QUANTIDADE MÁXIMA\nANUAL","PREÇO UNITÁRIO\n(R$)","PREÇO TOTAL\n(R$)"]
[{"$f":"A118+1","v":79},470243,"Sistema de irrigação por aspersão, malha fixa, com abrigo para o conjunto motobomba e capacidade para irrigar área de 1,0 hectare, para tensão nominal de 220V. ","Cota de até 25% reservada\npara ME/EPP","Unidade",1,13598.114051999999,{"$f":"F121*G121","v":13598.114051999999}]
[80,470243,"Sistema de Irrigação localizada, por microaspersão, com sistema de filtragem e fertirrigação, com capacidade para irrigar área de 1,0 hectare, para tensão nominal de 220V. ","Cota de até 25% reservada\npara ME/EPP","Unidade",1,30435.636300000009,30435.636300000009]
[81,470243,"Sistema de irrigação localizada, por microaspersão, fixo, com sistema de filtragem, abrigo para o conjunbto motobomba e capacidade para irrigar área de 0,50 hectare, para tensão nominal de 220V. ","Cota de até 25% reservada\npara ME/EPP","Unidade",1,18140.976299999998,18140.976299999998]
[82,470243,"Sistema de Irrigação localizada, por gotejamento, com sistema de filtragem e fertirrigação, com capacidade para irrigar área de 1,0 hectare, para tensão nominal de 220V. ","Cota de até 25% reservada\npara ME/EPP","Unidade",1,31092.5537,31092.5537]
[83,470243,"Sistema de Irrigação localizada, por gotejamento, com sistema de filtragem e fertirrigação, com capacidade para irrigar área de 0,5 hectare, para tensão nominal de 220V. ","Cota de até 25% reservada\npara ME/EPP","Unidade",1,18054.7487,18054.7487]
[{"$f":"A125+1","v":84},470243,"Minikit de irrigação com capacidade para 600 m2 de horta, 1.260 m2 de culturas temporárias ou 5.400 m2 de fruticultura, para tensão nominal de 220V.  ","Cota de até 25% reservada\npara ME/EPP","Unidade",1,4326.0149999999985,4326.0149999999985]
["GRUPO 15","SISTEMAS DE IRRIGAÇÃO PARA IMPLANTAÇÃO NA ÁREA DE ATUAÇÃO DA 11ª SR – AMAPÁ (AMPLA CONCORRÊNCIA)"]
["ITEM","CATMAT","DESCRIÇÃO/ESPECIFICAÇÃO","COTA/DECRETO","UNIDA DE\nMEDIDA","QUANTIDADE MÁXIMA\nANUAL","PREÇO UNITÁRIO\n(R$)","PREÇO TOTAL\n(R$)"]
[{"$f":"A126+1","v":85},470243,"Sistema de irrigação por aspersão, malha fixa, com abrigo para o conjunto motobomba e capacidade para irrigar área de 1,0 hectare, para a tensão nominal de 127V. ","Ampla concorrência","Unidade",142,18992.999051999999,{"$f":"F129*G129","v":2697005.8653839999}]
[{"$f":"A129+1","v":86},470243,"Sistema de Irrigação localizada, por microaspersão, com sistema de filtragem e fertirrigação, com capacidade para irrigar área de 1,0 hectare, para a tensão nominal de 127V.","Ampla concorrência","Unidade",142,25512.647799999995,3622795.9875999992]
[{"$f":"A130+1","v":87},470243,"Sistema de Irrigação localizada, por microaspersão, com sistema de filtragem e fertirrigação, com capacidade para irrigar área de 0,5 hectare, para a tensão nominal de 127V.","Ampla concorrência","Unidade",76,18743.942500000005,1424539.6300000004]
[88,470243,"Sistema de Irrigação localizada, por gotejamento, com sistema de filtragem e fertirrigação, com capacidade para irrigar área de 1,0 hectare, para a tensão nominal de 127V.","Ampla concorrência","Unidade",76,27602.751499999991,2097809.1139999991]
[89,470243,"Sistema de Irrigação localizada, por gotejamento, com sistema de filtragem e fertirrigação, com capacidade para irrigar área de 0,5 hectare, para a tensão nominal de 127V.","Ampla concorrência","Unidade",76,17970.511300000006,1365758.8588000005]
[90,470243,"Minikit de irrigação com capacidade para 600 m2 de horta, 1.260 m2 de culturas temporárias ou 5.400 m2 de fruticultura, para tensão nominal de 127V.","Ampla concorrência","Unidade",76,4415.2649999999985,335560.1399999999]
[91,470243,"Sistema de irrigação por aspersão, malha fixa, com abrigo para o conjunto motobomba e capacidade para irrigar área de 1,0 hectare, para tensão nominal de 220V. ","Ampla concorrência","Unidade",142,18992.999051999999,2697005.8653839999]
[92,470243,"Sistema de Irrigação localizada, por microaspersão, com sistema de filtragem e fertirrigação, com capacidade para irrigar área de 1,0 hectare, para tensão nominal de 220V. ","Ampla concorrência","Unidade",142,28415.857799999998,4035051.8075999999]
[93,470243,"Sistema de irrigação localizada, por microaspersão, fixo, com sistema de filtragem, abrigo para o conjunbto motobomba e capacidade para irrigar área de 0,50 hectare, para tensão nominal de 220V. ","Ampla concorrência","Unidade",76,18670.234500000006,1418937.8220000004]
[94,470243,"Sistema de Irrigação localizada, por gotejamento, com sistema de filtragem e fertirrigação, com capacidade para irrigar área de 1,0 hectare, para tensão nominal de 220V. ","Ampla concorrência","Unidade",76,30505.961499999994,2318453.0739999996]
[95,470243,"Sistema de Irrigação localizada, por gotejamento, com sistema de filtragem e fertirrigação, com capacidade para irrigar área de 0,5 hectare, para tensão nominal de 220V. ","Ampla concorrência","Unidade",76,17896.803300000007,1360157.0508000006]
[96,470243,"Minikit de irrigação com capacidade para 600 m2 de horta, 1.260 m2 de culturas temporárias ou 5.400 m2 de fruticultura, para tensão nominal de 220V.  ","Ampla concorrência","Unidade",76,4415.2649999999985,335560.1399999999]
["GRUPO 16","SISTEMAS DE IRRIGAÇÃO PARA IMPLANTAÇÃO NA ÁREA DE ATUAÇÃO DA 11ª SR – AMAPÁ (COTA DE ATÉ 25% - RESERVADA PARA ME/EPP)"]
["ITEM","CATMAT","DESCRIÇÃO/ESPECIFICAÇÃO","COTA/DECRETO","UNIDA DE\nMEDIDA","QUANTIDADE MÁXIMA\nANUAL","PREÇO UNITÁRIO\n(R$)","PREÇO TOTAL\n(R$)"]
[{"$f":"A140+1","v":97},470243,"Sistema de irrigação por aspersão, malha fixa, com abrigo para o conjunto motobomba e capacidade para irrigar área de 1,0 hectare, para a tensão nominal de 127V. ","Cota de até 25% reservada\npara ME/EPP","Unidade",8,18992.999051999999,{"$f":"F143*G143","v":151943.99241599999}]
[{"$f":"A143+1","v":98},470243,"Sistema de Irrigação localizada, por microaspersão, com sistema de filtragem e fertirrigação, com capacidade para irrigar área de 1,0 hectare, para a tensão nominal de 127V.","Cota de até 25% reservada\npara ME/EPP","Unidade",8,25512.647799999995,204101.18239999996]
[{"$f":"A144+1","v":99},470243,"Sistema de Irrigação localizada, por microaspersão, com sistema de filtragem e fertirrigação, com capacidade para irrigar área de 0,5 hectare, para a tensão nominal de 127V.","Cota de até 25% reservada\npara ME/EPP","Unidade",4,18743.942500000005,74975.770000000019]
[100,470243,"Sistema de Irrigação localizada, por gotejamento, com sistema de filtragem e fertirrigação, com capacidade para irrigar área de 1,0 hectare, para a tensão nominal de 127V.","Cota de até 25% reservada\npara ME/EPP","Unidade",4,27602.751499999991,110411.00599999996]
[101,470243,"Sistema de Irrigação localizada, por gotejamento, com sistema de filtragem e fertirrigação, com capacidade para irrigar área de 0,5 hectare, para a tensão nominal de 127V.","Cota de até 25% reservada\npara ME/EPP","Unidade",4,17970.511300000006,71882.045200000022]
[102,470243,"Minikit de irrigação com capacidade para 600 m2 de horta, 1.260 m2 de culturas temporárias ou 5.400 m2 de fruticultura, para tensão nominal de 127V.","Cota de até 25% reservada\npara ME/EPP","Unidade",4,4415.2649999999985,17661.059999999994]
[103,470243,"Sistema de irrigação por aspersão, malha fixa, com abrigo para o conjunto motobomba e capacidade para irrigar área de 1,0 hectare, para tensão nominal de 220V. ","Cota de até 25% reservada\npara ME/EPP","Unidade",8,18992.999051999999,151943.99241599999]
[104,470243,"Sistema de Irrigação localizada, por microaspersão, com sistema de filtragem e fertirrigação, com capacidade para irrigar área de 1,0 hectare, para tensão nominal de 220V. ","Cota de até 25% reservada\npara ME/EPP","Unidade",8,28415.857799999998,227326.86239999998]
[105,470243,"Sistema de irrigação localizada, por microaspersão, fixo, com sistema de filtragem, abrigo para o conjunbto motobomba e capacidade para irrigar área de 0,50 hectare, para tensão nominal de 220V. ","Cota de até 25% reservada\npara ME/EPP","Unidade",4,18670.234500000006,74680.938000000024]
[106,470243,"Sistema de Irrigação localizada, por gotejamento, com sistema de filtragem e fertirrigação, com capacidade para irrigar área de 1,0 hectare, para tensão nominal de 220V. ","Cota de até 25% reservada\npara ME/EPP","Unidade",4,30505.961499999994,122023.84599999998]
[107,470243,"Sistema de Irrigação localizada, por gotejamento, com sistema de filtragem e fertirrigação, com capacidade para irrigar área de 0,5 hectare, para tensão nominal de 220V. ","Cota de até 25% reservada\npara ME/EPP","Unidade",4,17896.803300000007,71587.213200000027]
[108,470243,"Minikit de irrigação com capacidade para 600 m2 de horta, 1.260 m2 de culturas temporárias ou 5.400 m2 de fruticultura, para tensão nominal de 220V.  ","Cota de até 25% reservada\npara ME/EPP","Unidade",4,4415.2649999999985,17661.059999999994]
["GRUPO 17","SISTEMAS DE IRRIGAÇÃO PARA IMPLANTAÇÃO NA ÁREA DE ATUAÇÃO DA 12ª SR – RIO GRANDE DO NORTE (AMPLA CONCORRÊNCIA)"]
["ITEM","CATMAT","DESCRIÇÃO/ESPECIFICAÇÃO","COTA/DECRETO","UNIDA DE\nMEDIDA","QUANTIDADE MÁXIMA\nANUAL","PREÇO UNITÁRIO\n(R$)","PREÇO TOTAL\n(R$)"]
[{"$f":"A154+1","v":109},470243,"Sistema de irrigação por aspersão, malha fixa, com abrigo para o conjunto motobomba e capacidade para irrigar área de 1,0 hectare, para tensão nominal de 220V. ","Ampla concorrência","Unidade",19,13478.174051999998,{"$f":"F157*G157","v":256085.30698799997}]
[{"$f":"A157+1","v":110},470243,"Sistema de Irrigação localizada, por microaspersão, com sistema de filtragem e fertirrigação, com capacidade para irrigar área de 1,0 hectare, para tensão nominal de 220V. ","Ampla concorrência","Unidade",19,30997.892000000007,588959.94800000009]
[111,470243,"Sistema de irrigação localizada, por microaspersão, fixo, com sistema de filtragem, abrigo para o conjunbto motobomba e capacidade para irrigar área de 0,50 hectare, para tensão nominal de 220V. ","Ampla concorrência","Unidade",47,18005.031200000005,846236.46640000027]
[112,470243,"Sistema de Irrigação localizada, por gotejamento, com sistema de filtragem e fertirrigação, com capacidade para irrigar área de 1,0 hectare, para tensão nominal de 220V. ","Ampla concorrência","Unidade",19,31624.529399999999,600866.05859999999]
[113,470243,"Sistema de Irrigação localizada, por gotejamento, com sistema de filtragem e fertirrigação, com capacidade para irrigar área de 0,5 hectare, para tensão nominal de 220V. ","Ampla concorrência","Unidade",47,17915.443600000006,842025.84920000029]
[114,470243,"Minikit de irrigação com capacidade para 600 m2 de horta, 1.260 m2 de culturas temporárias ou 5.400 m2 de fruticultura, para tensão nominal de 220V.  ","Ampla concorrência","Unidade",142,4340.8849999999993,616405.66999999993]
["GRUPO 18","SISTEMAS DE IRRIGAÇÃO PARA IMPLANTAÇÃO NA ÁREA DE ATUAÇÃO DA 12ª SR – RIO GRANDE DO NORTE (COTA DE ATÉ 25% - RESERVADA PARA ME/EPP)"]
["ITEM","CATMAT","DESCRIÇÃO/ESPECIFICAÇÃO","COTA/DECRETO","UNIDA DE\nMEDIDA","QUANTIDADE MÁXIMA\nANUAL","PREÇO UNITÁRIO\n(R$)","PREÇO TOTAL\n(R$)"]
[{"$f":"A162+1","v":115},470243,"Sistema de irrigação por aspersão, malha fixa, com abrigo para o conjunto motobomba e capacidade para irrigar área de 1,0 hectare, para tensão nominal de 220V. ","Cota de até 25% reservada\npara ME/EPP","Unidade",1,13478.174051999998,{"$f":"F165*G165","v":13478.174051999998}]
[116,470243,"Sistema de Irrigação localizada, por microaspersão, com sistema de filtragem e fertirrigação, com capacidade para irrigar área de 1,0 hectare, para tensão nominal de 220V. ","Cota de até 25% reservada\npara ME/EPP","Unidade",1,30997.892000000007,30997.892000000007]
[117,470243,"Sistema de irrigação localizada, por microaspersão, fixo, com sistema de filtragem, abrigo para o conjunbto motobomba e capacidade para irrigar área de 0,50 hectare, para tensão nominal de 220V. ","Cota de até 25% reservada\npara ME/EPP","Unidade",3,18005.031200000005,54015.093600000015]
[118,470243,"Sistema de Irrigação localizada, por gotejamento, com sistema de filtragem e fertirrigação, com capacidade para irrigar área de 1,0 hectare, para tensão nominal de 220V. ","Cota de até 25% reservada\npara ME/EPP","Unidade",1,31624.529399999999,31624.529399999999]
[119,470243,"Sistema de Irrigação localizada, por gotejamento, com sistema de filtragem e fertirrigação, com capacidade para irrigar área de 0,5 hectare, para tensão nominal de 220V. ","Cota de até 25% reservada\npara ME/EPP","Unidade",3,17915.443600000006,53746.330800000018]
[120,470243,"Minikit de irrigação com capacidade para 600 m2 de horta, 1.260 m2 de culturas temporárias ou 5.400 m2 de fruticultura, para tensão nominal de 220V.  ","Cota de até 25% reservada\npara ME/EPP","Unidade",8,4340.8849999999993,34727.079999999994]
["Valor total da licitação",{"$nulls":6},{"$f":"SUM(H17:H170)","v":93079842.11653994}]